bitfinex/quotes_ETHUSD_20241119
["timestamp","ask_amount","ask_price","bid_price","bid_amount"]
[1732021648708,0.05493927,3132.2,3132.0,0.9699743]
[1732021648863,3.19238,3132.5,3132.0,0.9699743]
[1732021649068,0.05491121,3132.4,3132.0,0.9699743]
[1732021649496,3.19259,3132.3,3131.8,0.55]
[1732021649672,6.38519,3132.3,3131.8,0.55]
[1732021649868,0.05488716,3132.2,3132.0,3.74282]
[1732021650189,3.1925,3132.4,3132.0,0.55]
[1732021650390,0.05493465,3132.1,3131.8,0.55]
[1732021650626,3.19266,3132.2,3131.8,0.55]
[1732021650781,0.05492947,3132.0,3131.8,0.55]
[1732021650986,3.19322,3131.7,3131.2,3.19359]
[1732021651205,3.19345,3131.5,3131.1,0.8135]
[1732021651513,0.05306254,3131.6,3131.2,0.63013689]
[1732021651672,0.05303795,3131.4,3131.2,0.63013689]
[1732021651868,3.19326,3131.6,3131.2,1.08447068]
[1732021652189,0.7509,3132.0,3131.2,1.08447068]
[1732021652190,3.19298,3131.9,3131.3,3.19349]
[1732021652498,0.05304998,3131.5,3131.4,0.06385651]
[1732021652710,3.19335,3131.5,3130.8,0.8135]
[1732021652869,6.38749,3131.2,3130.8,0.8135]
[1732021653068,3.19374,3131.2,3130.8,1.214271]
[1732021653275,3.19374,3131.2,3130.8,0.8135]
[1732021653276,0.0529454,3131.1,3130.8,0.8135]
[1732021653706,0.0529454,3131.1,3130.8,4.00757]
[1732021653911,0.0529454,3131.1,3130.9,0.720171]
[1732021654074,0.8082,3131.7,3130.9,0.55]
[1732021654274,3.19296,3131.9,3131.3,0.55]
[1732021654506,6.38599,3131.9,3131.3,3.74356]
[1732021654721,3.19296,3131.9,3131.3,4.117916]
[1732021654995,3.19279,3132.1,3131.3,4.117916]
[1732021654996,3.19279,3132.1,3131.5,0.55]
[1732021655228,0.7689,3132.4,3131.5,0.55]
[1732021655229,3.19285,3132.0,3131.5,0.55]
[1732021655537,0.7689,3132.4,3131.6,3.1932]
[1732021655749,0.7689,3132.4,3131.7,0.92432]
[1732021655905,0.7689,3132.4,3131.7,0.55]
[1732021656542,0.7689,3132.4,3131.7,3.7431]
[1732021656543,3.1926,3132.3,3131.7,3.7431]
[1732021657211,3.19266,3132.2,3131.6,3.19319]
[1732021657407,3.19266,3132.2,3131.7,0.55]
[1732021657600,3.10105554,3132.1,3131.6,0.55]
[1732021657800,3.10105554,3132.1,3130.9,3.19394]
[1732021657801,3.19314,3131.8,3131.2,3.0]
[1732021658037,3.19313,3131.8,3131.2,3.0]
[1732021658236,3.19328,3131.6,3131.2,3.0]
[1732021658443,3.1932,3131.7,3131.3,0.37803]
[1732021658655,3.1932,3131.7,3131.1,7.00848411]
[1732021658656,3.19289,3132.0,3131.1,3.97403]
[1732021658945,3.86995554,3132.4,3131.3,0.6325905]
[1732021658946,3.19316,3131.7,3131.3,0.6325905]
[1732021659111,0.7704,3131.7,3131.3,0.6325905]
[1732021659314,3.19309,3131.8,3131.3,0.6325905]
[1732021659527,3.19309,3131.8,3131.4,0.68262205]
[1732021660313,0.05302217,3131.7,3131.4,0.68262205]
[1732021660613,3.19309,3131.8,3131.5,0.55]
[1732021660846,0.05300611,3131.6,3131.5,0.55]
[1732021660998,0.7704,3132.1,3131.5,0.55]
[1732021661203,3.19341,3131.5,3131.4,0.55]
[1732021661420,3.19335,3131.6,3131.4,0.55]
[1732021661620,0.05299005,3131.5,3131.4,0.55]
[1732021662106,0.05298198,3131.5,3131.4,0.55]
[1732021662453,3.19322,3131.7,3131.4,0.55]
[1732021662661,0.05297391,3131.5,3131.4,3.74345]
[1732021662823,3.19307,3131.8,3131.4,0.98761905]
[1732021663153,3.1932,3131.7,3131.4,0.98761905]
[1732021663365,0.05298594,3131.6,3131.4,0.55]
[1732021664341,0.05298594,3131.6,3131.5,0.55]
[1732021664517,3.193,3131.9,3131.4,0.55]
[1732021664718,0.05301574,3131.8,3131.5,0.7897]
[1732021664960,3.96314,3132.1,3131.6,0.06385727]
[1732021665161,0.05304326,3132.0,3131.5,3.98305]
[1732021665318,0.05304326,3132.0,3131.6,0.55]
[1732021665519,0.05304326,3132.0,3131.6,3.7432]
[1732021665754,3.1927,3132.2,3131.6,3.7432]
[1732021665928,3.19259,3132.3,3131.7,3.19313]
[1732021665929,0.05305528,3132.1,3131.7,3.19313]
[1732021666131,3.19259,3132.3,3131.7,3.19313]
[1732021666340,3.24571731,3132.2,3131.7,3.19313]
[1732021666661,0.05306731,3132.2,3131.8,3.19302]
[1732021667016,0.818,3132.4,3132.0,3.19283]
[1732021667222,0.05306682,3132.1,3132.0,3.74278]
[1732021667434,3.1923,3132.6,3132.1,0.55]
[1732021668822,3.1923,3132.6,3132.1,3.74271]
[1732021670473,4.02536,3132.7,3132.2,3.19262]
[1732021671062,1.554942,3132.7,3132.0,0.55]
[1732021671225,3.19245,3132.4,3132.0,0.55]
[1732021671920,3.19269,3132.2,3131.9,0.55]
[1732021672150,6.38519,3132.3,3131.9,0.55]
[1732021672730,3.19257,3132.3,3131.9,0.55]
[1732021672954,6.38518,3132.3,3131.9,0.55]
[1732021673216,3.19271,3132.2,3131.9,0.55]
[1732021673349,3.19279,3132.1,3131.7,0.55]
[1732021673791,3.19279,3132.1,3131.6,3.19319]
[1732021673792,3.19284,3132.0,3131.6,0.55]
[1732021673994,3.19279,3132.1,3131.6,1.29952]
[1732021674162,3.19279,3132.1,3131.6,4.49277]
[1732021674362,3.1926,3132.3,3131.8,3.74302]
[1732021675254,3.19265,3132.2,3131.8,0.55]
[1732021675456,3.24405058,3132.2,3131.8,0.55]
[1732021675966,0.05136058,3132.2,3131.8,0.55]
[1732021676177,3.1926,3132.3,3131.8,0.55]
[1732021676367,3.24406616,3132.2,3131.8,0.55]
[1732021676565,3.19275,3132.1,3131.8,0.55]
[1732021676941,0.05132212,3132.0,3131.8,0.55]
[1732021677093,0.05132212,3132.0,3131.8,0.924315]
[1732021677263,3.10105554,3132.5,3131.6,0.55]
[1732021677452,0.05131122,3131.9,3131.8,0.55]
[1732021677656,3.19261,3132.3,3131.8,0.55]
[1732021677879,0.05131122,3131.9,3131.8,0.55]
[1732021678189,0.05131122,3131.9,3131.6,0.55]
[1732021678190,3.24431122,3131.9,3131.6,0.55]
[1732021678764,3.19305,3131.8,3131.6,0.55]
[1732021678968,0.0512843,3131.7,3131.6,0.55]
[1732021679274,3.19291,3132.0,3131.6,0.55]
[1732021679493,0.0512843,3131.7,3131.6,0.55]
[1732021679690,6.38583,3132.0,3131.6,1.003335]
[1732021680000,3.19305,3131.8,3131.6,0.55]
[1732021680153,3.19305,3131.8,3131.3,3.8260605]
[1732021680154,3.19305,3131.8,3131.4,0.55]
[1732021680357,3.24449567,3131.7,3131.2,3.19364]
[1732021680715,0.05127567,3131.7,3131.2,0.43065]
[1732021680920,3.19325,3131.6,3131.1,0.7942]
[1732021681269,0.05125162,3131.5,3131.1,0.7942]
[1732021681471,3.19352,3131.4,3130.8,1.43600032]
[1732021681725,3.19352,3131.4,3130.8,2.13899135]
[1732021682020,3.19372,3131.2,3130.8,1.49719103]
[1732021682181,3.19372,3131.2,3130.8,0.7942]
[1732021682369,0.05114182,3131.1,3130.5,4.33015]
[1732021682572,3.10105554,3130.9,3130.1,0.8172]
[1732021682771,3.19439,3130.5,3130.1,0.8172]
[1732021683024,3.19439,3130.5,3129.7,3.19511]
[1732021683025,3.19459,3130.3,3129.8,0.8172]
[1732021683328,3.19459,3130.3,3129.8,1.136711]
[1732021683505,0.05101391,3130.2,3129.8,0.8172]
[1732021683843,3.19455,3130.4,3129.9,0.06388669]
[1732021683974,3.19412,3130.8,3130.1,3.19476]
[1732021684326,0.0510366,3130.7,3130.2,0.7905]
[1732021684524,0.0510366,3130.7,3130.5,0.55]
[1732021684824,3.19398,3130.9,3130.7,0.55]
[1732021684973,3.19407,3130.8,3130.4,0.55]
[1732021685175,3.19407,3130.8,3130.4,0.948508]
[1732021685408,3.1943,3130.6,3130.4,0.948508]
[1732021685608,3.1943,3130.6,3130.3,0.55]
[1732021686116,3.19407,3130.8,3130.3,0.55]
[1732021687201,3.1939,3131.0,3130.3,3.74456]
[1732021687372,3.1939,3131.0,3130.5,0.55]
[1732021687567,3.19378,3131.1,3130.5,0.55]
[1732021687871,0.7618,3131.3,3130.7,0.55]
[1732021688079,3.19395,3131.0,3130.7,0.55]
[1732021688300,3.1937,3131.2,3130.6,0.55]
[1732021688499,3.1937,3131.2,3130.6,0.9013831]
[1732021688722,3.1938,3131.1,3130.6,0.9013831]
[1732021688922,0.7618,3131.3,3130.6,0.9013831]
[1732021689130,3.19442,3130.5,3130.1,0.55]
[1732021689288,3.19448,3130.4,3130.1,1.302384]
[1732021689485,3.19437,3130.5,3130.0,3.7448]
[1732021689730,3.19449,3130.4,3130.2,0.55]
[1732021690323,3.19449,3130.4,3129.9,0.779]
[1732021690502,0.04926962,3130.3,3130.0,0.397403]
[1732021690730,0.04926962,3130.3,3129.9,3.97398]
[1732021690892,0.04926962,3130.3,3129.9,0.779]
[1732021691689,3.19414,3130.8,3130.3,0.55]
[1732021692263,3.19414,3130.8,3130.3,0.924462]
[1732021693471,4.0203,3131.0,3130.4,3.19447]
[1732021693619,3.19398,3130.9,3130.5,0.55]
[1732021693960,3.19408,3130.8,3130.3,0.55]
[1732021694129,3.19408,3130.8,3130.5,0.55]
[1732021694332,3.19408,3130.8,3130.3,0.55]
[1732021694648,3.19418,3130.7,3130.3,0.55]
[1732021695331,3.19418,3130.7,3130.2,3.19463]
[1732021695530,3.19417,3130.7,3130.3,0.319463]
[1732021697033,3.19398,3130.9,3130.3,3.514043]
[1732021697221,6.38802,3130.9,3130.3,0.319463]
[1732021697570,3.19416,3130.8,3130.3,0.319463]
[1732021697724,3.19372,3131.2,3130.6,3.19425]
[1732021698058,3.19387,3131.0,3130.7,0.319425]
[1732021698261,3.95972,3131.4,3130.6,3.94735]
[1732021698430,3.95972,3131.4,3130.8,3.19405]
[1732021698431,3.19352,3131.4,3130.8,3.19405]
[1732021698630,3.19352,3131.4,3130.9,3.19391]
[1732021701516,3.1928,3132.1,3131.6,3.19322]
[1732021702303,3.1928,3132.1,3131.3,3.19351]
[1732021702487,3.19268,3132.2,3131.6,3.19318]
[1732021702805,3.19312,3131.8,3131.2,0.8322]
[1732021702961,3.19321,3131.7,3131.2,0.8322]
[1732021703160,0.763,3132.0,3131.2,0.8322]
[1732021703360,3.1927,3132.2,3131.5,3.19326]
[1732021703591,3.19296,3131.9,3131.3,3.19352]
[1732021703802,3.19296,3131.9,3131.2,0.8322]
[1732021704022,0.763,3132.4,3131.5,3.19332]
[1732021704298,3.19285,3132.0,3131.3,6.29453554]
[1732021704520,3.19285,3132.0,3131.4,0.71267355]
[1732021705314,0.04958721,3131.9,3131.4,3.90611355]
[1732021705475,0.04958721,3131.9,3131.5,3.19328]
[1732021705813,3.19274,3132.1,3131.6,3.19324]
[1732021706013,0.04959923,3132.0,3131.7,0.7566]
[1732021706716,0.04959923,3132.0,3131.8,3.19296]
[1732021706865,0.04959923,3132.0,3131.9,3.19294]
[1732021707114,3.95639,3132.6,3132.0,3.19282]
[1732021707701,3.10105554,3132.4,3132.0,3.19282]
[1732021708011,3.95639,3132.6,3132.0,3.19282]
[1732021708191,3.19229,3132.6,3132.0,3.19282]
[1732021708392,3.19229,3132.6,3132.1,0.390707]
[1732021708722,3.19225,3132.6,3132.1,0.390707]
[1732021709415,6.38458,3132.6,3132.1,0.390707]
[1732021709636,3.19234,3132.5,3132.1,0.390707]
[1732021711183,3.19213,3132.7,3132.1,0.390707]
[1732021711387,3.19234,3132.5,3132.2,0.3583527]
[1732021711615,3.19234,3132.5,3131.8,3.19302]
[1732021711909,3.19258,3132.3,3131.8,3.19302]
[1732021712214,3.19234,3132.5,3131.8,3.19302]
[1732021712215,3.19234,3132.5,3131.9,0.45769984]
[1732021712418,3.19244,3132.4,3131.9,3.65062984]
[1732021712774,6.38497,3132.4,3131.9,0.45769984]
[1732021713112,3.19281,3132.1,3131.7,0.7566]
[1732021714374,3.19281,3132.1,3130.9,3.01]
[1732021714375,3.19301,3131.9,3130.7,0.8009]
[1732021714575,3.1931,3131.8,3131.3,0.8009]
[1732021714777,3.19324,3131.7,3131.3,0.8009]
[1732021714985,0.7912,3132.3,3131.3,0.8009]
[1732021715176,3.19309,3131.8,3131.3,0.8009]
[1732021715376,3.19325,3131.6,3131.3,0.8009]
[1732021715570,3.19336,3131.5,3131.3,0.8009]
[1732021715825,3.19336,3131.5,3131.0,4.0133]
[1732021716116,3.19292,3132.0,3130.6,3.19422]
[1732021716316,3.19305,3131.8,3130.7,4.01366]
[1732021716530,3.19362,3131.3,3130.7,4.01366]
[1732021716813,3.19362,3131.3,3130.5,3.19437]
[1732021716814,3.1933,3131.6,3131.0,3.19386]
[1732021717394,3.19336,3131.5,3130.8,4.01349]
[1732021717574,0.7927,3131.9,3130.9,0.401349]
[1732021717894,3.19377,3131.1,3130.8,0.8195]
[1732021718509,3.19377,3131.1,3130.4,3.1944]
[1732021718825,0.778,3131.3,3130.2,3.19462]
[1732021718826,0.778,3131.3,3130.5,1.14294]
[1732021719002,3.10105554,3130.7,3130.5,0.8235]
[1732021719181,3.19408,3130.8,3130.5,0.8235]
[1732021719182,0.04939566,3130.6,3130.5,0.8235]
[1732021719377,3.10105554,3130.6,3130.5,0.8235]
[1732021719670,3.1504512,3130.6,3130.5,0.8235]
[1732021720736,3.1504512,3130.6,3130.5,1.544753]
[1732021721726,0.04939566,3130.6,3130.5,1.544753]
[1732021722044,0.04939566,3130.6,3129.8,0.7643]
[1732021722045,0.8318,3130.6,3129.8,0.7643]
[1732021722246,3.10105554,3130.1,3129.8,3.95931]
[1732021722461,3.10105554,3130.1,3129.9,0.715445]
[1732021722600,0.0492871,3130.0,3129.9,0.715445]
[1732021722807,0.0492871,3130.0,3129.9,3.910435]
[1732021723117,0.0492871,3130.0,3129.9,0.715445]
[1732021723506,0.0492871,3130.0,3129.9,3.910435]
[1732021723706,0.0492871,3130.0,3129.9,4.460435]
[1732021723961,3.10105554,3130.4,3130.2,3.19465]
[1732021724306,0.04932322,3130.3,3130.2,3.19465]
[1732021724913,0.04932322,3130.3,3130.0,4.0173535]
[1732021725360,3.10105554,3130.4,3130.0,4.0173535]
[1732021725656,3.10105554,3130.4,3130.1,3.72305985]
[1732021725840,0.04932322,3130.3,3130.1,3.72305985]
[1732021726015,0.04932322,3130.3,3130.2,3.97068]
[1732021726220,3.10105554,3130.7,3130.2,4.52068]
[1732021726423,3.10105554,3131.0,3130.6,3.19419]
[1732021726617,0.04939543,3130.9,3130.6,3.19419]
[1732021727031,3.19377,3131.1,3130.6,3.19419]
[1732021727344,0.04940746,3131.0,3130.7,0.319419]
[1732021728032,3.19367,3131.2,3130.7,0.319419]
[1732021728238,0.04942813,3131.1,3130.8,0.8278]
[1732021728625,3.99409,3131.5,3130.8,4.02179]
[1732021728848,0.04946422,3131.4,3130.9,3.6280809]
[1732021729362,0.04946422,3131.4,3131.0,3.19385]
[1732021729745,0.04946422,3131.4,3131.2,3.19366]
[1732021730181,3.19315,3131.7,3131.2,3.19366]
[1732021730559,6.29405554,3131.9,3131.2,3.19357]
[1732021730894,3.19327,3131.6,3131.0,3.19378]
[1732021731206,3.10105554,3131.4,3130.8,3.19401]
[1732021731549,3.24306953,3131.3,3130.8,0.715523]
[1732021732166,3.19367,3131.2,3130.8,0.715523]
[1732021732362,0.04944832,3131.1,3130.8,0.715523]
[1732021733105,0.04944832,3131.1,3130.6,3.96126]
[1732021733106,0.04944832,3131.1,3130.6,0.767]
[1732021733391,3.19351,3131.4,3130.8,3.19397]
[1732021733561,0.04942649,3131.0,3130.9,0.319397]
[1732021733765,3.19351,3131.4,3130.7,3.1941]
[1732021734066,7.05550554,3131.6,3130.6,0.767]
[1732021734263,0.04944241,3131.3,3131.0,3.19384]
[1732021734468,3.95445,3131.6,3131.0,3.19384]
[1732021734667,0.04942001,3131.2,3131.0,3.19384]
[1732021734859,3.95445,3131.6,3131.0,3.19384]
[1732021735098,0.04940798,3131.1,3131.0,3.832631]
[1732021735302,3.10105554,3131.5,3131.0,3.832631]
[1732021735483,0.04941605,3131.1,3130.7,0.396134]
[1732021735798,3.19361,3131.3,3130.7,0.396134]
[1732021735799,3.19361,3131.3,3130.7,6.38818]
[1732021736096,3.19361,3131.3,3130.7,3.19408]
[1732021736307,0.04942808,3131.2,3130.7,3.19408]
[1732021736599,6.29440554,3131.5,3130.9,3.1939]
[1732021736768,0.04941432,3131.1,3130.9,3.1939]
[1732021736950,3.19335,3131.5,3130.9,3.1939]
[1732021736951,3.19335,3131.5,3130.9,3.82191376]
[1732021737155,0.04940862,3131.0,3130.9,0.62801376]
[1732021737395,3.19335,3131.5,3130.9,0.62801376]
[1732021737595,0.04940862,3131.0,3130.9,0.62801376]
[1732021737900,0.04940862,3131.0,3130.9,1.04983394]
[1732021738100,3.19335,3131.5,3130.9,1.04983394]
[1732021738101,3.10105554,3131.1,3130.9,4.24379394]
[1732021738412,3.19335,3131.5,3130.9,0.62801376]
[1732021738413,0.04940862,3131.0,3130.9,0.62801376]
[1732021738595,0.04940862,3131.0,3130.6,0.767]
[1732021738765,3.19379,3131.1,3130.6,0.767]
[1732021738947,0.04939659,3130.9,3130.6,0.767]
[1732021739148,0.04940806,3131.0,3130.6,0.6313349]
[1732021739391,0.04938399,3130.8,3130.5,3.19436]
[1732021739655,0.04937196,3130.7,3130.5,4.13325]
[1732021739888,3.19387,3131.0,3130.5,4.13325]
[1732021740093,0.04935416,3130.6,3130.5,4.13325]
[1732021740276,3.19387,3131.0,3130.5,0.93889]
[1732021740482,0.04935416,3130.6,3130.2,0.7551]
[1732021740682,0.819,3131.1,3130.2,0.7551]
[1732021740683,0.819,3131.1,3130.6,3.19422]
[1732021741015,7.11357554,3131.4,3130.7,0.7551]
[1732021741167,0.819,3131.4,3130.8,3.19401]
[1732021741359,0.819,3131.4,3130.9,3.588811]
[1732021742156,7.1823,3131.7,3131.0,3.1938]
[1732021742370,3.19327,3131.6,3131.1,0.3588711]
[1732021742584,3.19327,3131.6,3131.0,3.1938]
[1732021742792,3.98907,3131.7,3131.0,3.1938]
[1732021743004,3.19336,3131.5,3130.9,3.19395]
[1732021743187,3.19336,3131.5,3131.0,0.638796]
[1732021743568,3.98907,3131.7,3131.0,3.832586]
[1732021743786,3.98907,3131.7,3131.1,3.19374]
[1732021743955,3.10105554,3131.2,3131.0,0.638796]
[1732021744297,3.10105554,3131.6,3131.1,3.19376]
[1732021744482,3.98907,3131.7,3131.2,3.513026]
[1732021744874,3.98907,3131.7,3130.7,1.0743]
[1732021744875,3.20153866,3132.1,3131.5,3.19329]
[1732021745040,3.20153866,3132.1,3131.7,3.19312]
[1732021745041,0.00872866,3132.1,3131.7,3.19312]
[1732021745575,0.00872866,3132.1,3131.5,3.19329]
[1732021745729,0.00872866,3132.1,3131.6,0.319329]
[1732021745934,0.00872866,3132.1,3131.6,3.512569]
[1732021746271,0.00872866,3132.1,3131.5,0.63273999]
[1732021746422,0.00872866,3132.1,3131.7,3.19314]
[1732021746624,0.00872866,3132.1,3131.6,3.19324]
[1732021746865,0.00872866,3132.1,3131.6,3.575844]
[1732021747170,3.20147866,3132.1,3131.6,3.575844]
[1732021747329,0.00872866,3132.1,3131.6,3.575844]
[1732021748223,0.00872866,3132.1,3131.7,3.19313]
[1732021748970,0.00872866,3132.1,3131.7,6.3862]
[1732021749159,0.00872866,3132.1,3131.7,3.19307]
[1732021749475,0.00872866,3132.1,3131.7,6.38615]
[1732021749785,0.00872866,3132.1,3131.7,3.6326174]
[1732021750063,0.00872866,3132.1,3131.8,3.19302]
[1732021750273,0.04956982,3132.0,3131.8,3.19302]
[1732021750770,0.04956982,3132.0,3131.9,3.19294]
[1732021751282,0.04956982,3132.0,3131.5,4.01313]
[1732021751571,0.04956982,3132.0,3131.7,3.19313]
[1732021751739,0.04956982,3132.0,3131.9,3.19294]
[1732021754169,0.04956982,3132.0,3131.7,6.38619]
[1732021754701,0.04956982,3132.0,3131.8,3.19305]
[1732021755066,0.04956982,3132.0,3131.9,3.19294]
[1732021755787,0.04956982,3132.0,3131.8,3.512355]
[1732021755788,0.04956982,3132.0,3131.8,0.319305]
[1732021756114,0.04956982,3132.0,3131.5,1.221113]
[1732021756115,0.04956982,3132.0,3131.7,3.19307]
[1732021756659,0.04956982,3132.0,3131.9,3.19294]
[1732021758600,0.00872866,3132.1,3132.0,3.19284]
[1732021758756,0.00872866,3132.1,3132.0,3.512134]
[1732021759154,0.05839985,3132.1,3132.0,3.512134]
[1732021759361,0.00872866,3132.1,3132.0,4.336734]
[1732021760533,0.00872866,3132.1,3132.0,7.336734]
[1732021762044,0.00872866,3132.1,3132.0,3.512134]
[1732021762337,0.05842405,3132.1,3132.0,3.512134]
[1732021763205,0.05842405,3132.1,3132.0,7.288334]
[1732021763512,0.00872866,3132.1,3132.0,7.288334]
[1732021768155,3.10105554,3133.8,3133.0,0.7527]
[1732021768376,0.7612,3134.2,3132.6,3.19216]
[1732021768377,3.10105554,3133.2,3132.7,3.94477]
[1732021768514,3.10105554,3133.2,3132.8,3.19201]
[1732021768719,3.10105554,3133.2,3132.7,3.94477]
[1732021768923,3.10105554,3132.9,3132.4,0.7527]
[1732021769135,3.86225554,3132.5,3131.9,3.19288]
[1732021769355,3.86225554,3132.5,3131.7,0.7527]
[1732021769356,3.86225554,3132.5,3131.7,3.94582]
[1732021769566,3.86225554,3132.5,3131.9,3.1929]
[1732021769856,3.86225554,3132.5,3132.0,3.19275]
[1732021770294,4.56770609,3132.5,3131.8,3.19298]
[1732021770501,3.10105554,3132.2,3131.6,3.19317]
[1732021770660,3.19244,3132.4,3131.6,0.638649]
[1732021770875,0.8164,3132.0,3131.4,3.19338]
[1732021771052,4.00927,3132.0,3131.4,3.591098]
[1732021771252,4.00927,3132.0,3131.4,0.397718]
[1732021771478,4.00927,3132.0,3131.4,3.0]
[1732021771678,0.8164,3132.0,3131.5,3.19335]
[1732021771991,1.44022287,3132.0,3131.5,3.19335]
[1732021772456,0.62382287,3132.0,3131.7,3.19315]
[1732021772661,0.62382287,3132.0,3131.5,3.49331]
[1732021772894,0.62382287,3132.0,3131.3,6.38699]
[1732021773207,0.62382287,3132.0,3131.4,3.19339]
[1732021773208,3.81670287,3132.0,3131.4,3.19339]
[1732021773486,3.81670287,3132.0,3131.3,6.19349]
[1732021773487,0.04965115,3131.9,3131.3,6.19349]
[1732021773689,0.04965115,3131.9,3131.5,3.19328]
[1732021773849,0.04965115,3131.9,3131.6,3.19325]
[1732021774054,0.04965115,3131.9,3131.8,3.19305]
[1732021774564,3.19234,3132.5,3131.7,0.8071]
[1732021774769,3.19271,3132.2,3131.7,0.8071]
[1732021775005,3.19271,3132.2,3131.5,6.19334]
[1732021775207,3.94659,3132.1,3131.5,3.357181]
[1732021775716,0.7538,3132.1,3131.5,6.550521]
[1732021775921,0.7538,3132.1,3131.6,1.0543291]
[1732021776268,0.808,3132.4,3131.8,3.19296]
[1732021776448,3.19228,3132.6,3131.8,3.19296]
[1732021776449,3.97455,3132.7,3132.0,3.19284]
[1732021776794,3.19225,3132.6,3131.9,1.090396]
[1732021777736,0.01,3133.1,3132.3,3.19249]
[1732021777737,3.19183,3133.0,3132.3,3.19249]
[1732021778031,0.8198,3133.1,3132.4,0.319249]
[1732021778032,3.19205,3132.8,3132.4,0.319249]
[1732021778207,3.19189,3133.0,3131.9,0.7711]
[1732021778409,1.46711116,3133.1,3132.4,3.19243]
[1732021778605,1.46711116,3133.1,3132.5,0.7831]
[1732021779041,3.1919,3133.0,3132.5,0.7831]
[1732021779793,3.1919,3133.0,3132.3,3.19253]
[1732021779794,3.1919,3133.0,3132.3,4.00543]
[1732021780127,3.1919,3133.0,3132.4,0.319253]
[1732021780443,0.0498065,3132.9,3132.4,0.319253]
[1732021780801,3.2417465,3132.9,3132.4,0.319253]
[1732021781025,3.2417465,3132.9,3132.3,0.8129]
[1732021781026,0.0498065,3132.9,3132.3,0.8129]
[1732021781222,0.0498065,3132.9,3132.4,3.19242]
[1732021781427,0.64731116,3133.1,3132.4,3.19242]
[1732021781635,0.04979448,3132.8,3132.5,3.19231]
[1732021781836,6.29269554,3133.2,3132.5,3.912086]
[1732021782002,3.19154,3133.3,3132.5,3.912086]
[1732021782346,0.04984255,3133.2,3132.6,3.19223]
[1732021782545,0.04984255,3133.2,3132.7,3.19212]
[1732021782699,3.19148,3133.4,3132.8,0.319212]
[1732021783005,0.04983053,3133.1,3132.8,0.319212]
[1732021783341,6.29238554,3133.5,3132.9,0.7582]
[1732021783503,3.19158,3133.3,3132.9,0.7582]
[1732021783937,0.04984255,3133.2,3132.6,0.7582]
[1732021784141,3.19176,3133.1,3132.6,1.1494106]
[1732021784353,0.84094723,3133.1,3132.6,0.7582]
[1732021784641,3.19193,3132.9,3132.6,0.7582]
[1732021784807,0.04984723,3133.1,3132.6,0.7582]
[1732021785022,0.04981118,3132.8,3132.6,1.13402]
[1732021785244,0.817,3133.4,3132.6,1.13402]
[1732021785537,3.19152,3133.3,3132.7,0.432626]
[1732021785848,0.817,3133.4,3132.7,0.432626]
[1732021786137,6.29240554,3133.5,3132.7,0.432626]
[1732021786348,3.19148,3133.4,3133.0,3.0]
[1732021787226,3.10105554,3133.5,3133.0,3.0]
[1732021787550,3.19142,3133.4,3133.0,3.0]
[1732021787755,3.19163,3133.2,3133.0,3.0]
[1732021788852,3.19172,3133.1,3133.0,3.0]
[1732021789059,6.29268554,3133.2,3133.0,3.0]
[1732021789538,3.19172,3133.1,3133.0,3.0]
[1732021789699,6.29268554,3133.2,3133.0,3.0]
[1732021789700,3.10105554,3133.2,3133.0,3.0]
[1732021789900,6.29272554,3133.2,3133.0,3.0]
[1732021790771,3.19172,3133.1,3133.0,3.0]
[1732021792516,6.29267554,3133.2,3133.0,3.0]
[1732021792647,3.19172,3133.1,3133.0,3.0]
[1732021795101,3.19162,3133.2,3133.0,3.0]
[1732021795581,3.241573,3133.1,3133.0,3.0]
[1732021797386,0.049853,3133.1,3133.0,3.0]
[1732021797995,3.1917,3133.2,3133.0,3.0]
[1732021798296,3.24160295,3133.1,3133.0,3.0]
[1732021800381,0.04988295,3133.1,3133.0,3.0]
[1732021801050,0.04988295,3133.1,3133.0,3.3]
[1732021801250,3.19145,3133.4,3133.0,3.3]
[1732021801490,0.04988295,3133.1,3133.0,3.3]
[1732021801698,3.19145,3133.4,3133.0,3.3]
[1732021801854,0.04988295,3133.1,3133.0,3.3]
[1732021802166,0.04988985,3133.1,3133.0,3.3]
[1732021802347,3.19145,3133.4,3133.0,3.3]
[1732021802721,0.04988985,3133.1,3133.0,3.3]
[1732021802852,3.10105554,3133.5,3133.0,3.3]
[1732021803204,0.04994145,3133.4,3133.1,1.0911]
[1732021803406,0.65273734,3133.7,3133.1,1.0911]
[1732021803550,0.7971,3134.1,3133.1,1.0911]
[1732021803551,0.04827141,3133.3,3133.2,0.3192]
[1732021803750,3.19087,3134.0,3133.2,3.91993]
[1732021803751,3.19092,3133.9,3133.2,3.91993]
[1732021803989,0.04833554,3133.8,3133.5,0.7611]
[1732021804189,3.89815554,3134.8,3133.6,3.40803]
[1732021804355,3.23894733,3134.3,3133.6,6.19113]
[1732021804554,0.04839733,3134.3,3133.9,0.3192]
[1732021804798,0.04839733,3134.3,3133.6,3.19119]
[1732021804799,3.23890733,3134.3,3134.1,1.1516]
[1732021805182,0.04839733,3134.3,3133.8,1.1516]
[1732021805674,0.04839733,3134.3,3133.9,0.434262]
[1732021806108,3.23889733,3134.3,3133.8,0.86318993]
[1732021806311,0.70098053,3134.3,3133.8,0.8324]
[1732021806616,3.89149053,3134.3,3133.8,0.8324]
[1732021806786,0.70098053,3134.3,3133.9,0.402341]
[1732021806972,0.70098053,3134.3,3133.8,4.02341]
[1732021807172,0.70098053,3134.3,3133.8,0.88558195]
[1732021807385,0.70098053,3134.3,3133.8,0.8324]
[1732021807634,0.70098053,3134.3,3133.9,0.4076672]
[1732021807976,0.70098053,3134.3,3133.9,3.5985572]
[1732021808296,0.70098053,3134.3,3133.9,0.4076672]